Cogmind - Beta 12 *** ADVENTURER MODE // 2023.03.07 @ 00:40:48 Player: SleepySid Result: Destroyed by Y-45 Defender with Beam Rifle Performance ------------- Evolutions (2) 1000 Regions Visited (4) 800 Robots Destroyed (30) 150 Value Destroyed (932) 932 Prototype IDs (0) 0 Alien Tech Used (0) 0 Bonus (175) 175 TOTAL SCORE: 3057 Bonus ------- Follower Combat Kills 175 Cogmind --------- Core Integrity 0/550 Matter 300/300 Energy 100/100 System Corruption 0% Temperature Cool (9) Movement Core (1050) Ox20 Location -8/Materials Parts ------- > --- POWER (2) -------- (None) > --- PROPULSION (3) --- (None) > --- UTILITY (4) ------ Large Storage Unit High-capacity Storage Unit High-powered Tractor Beam > --- WEAPON (2) ------- (None) > --- INVENTORY (20) --- (None) Peak State ------------ > --- POWER ------------ Light Ion Engine Light Nuclear Core > --- PROPULSION ------- Flight Unit Flight Unit > --- UTILITY ---------- Improved Heat Sink Large Storage Unit Medium Armor Plating Medium Armor Plating > --- WEAPON ----------- Pulse Rifle Assault Cannon > --- INVENTORY -------- Improved Ion Engine Wheel High-capacity Storage Unit Heavy Assault Rifle [Rating: 20] Favorites ----------- Power Ion Engine Engine Ion Engine Power Core Light Nuclear Core Propulsion Aluminum Leg Treads Light Treads Leg Aluminum Leg Wheel Wheel Flight Unit Flight Unit Utility Large Storage Unit Device Sensor Array Storage Large Storage Unit Protection Hardened Light Armor Plating Weapon Particle Gun Energy Gun Particle Gun Ballistic Gun Heavy Assault Rifle Ballistic Cannon Assault Cannon Special Melee Weapon Improved Datajack Build | -11 -10 -9 -9 -8 ------- Run | Jun Mat Mat Min Mat Slots Evolved 4 | . . 2 . 2 Power 1 | . . 1 . . Propulsion 1 | . . . . 1 Utility 2 | . . 1 . 1 Weapon . | . . . . . Parts Attached 59 | 7 13 6 5 28 Power 10 | 1 1 2 . 6 Engine 9 | 1 1 2 . 5 Core 1 | . . . . 1 Reactor . | . . . . . Propulsion 16 | 4 4 2 . 6 Treads 3 | 2 . . . 1 Leg 6 | . 4 2 . . Wheel 5 | 2 . . . 3 Hover . | . . . . . Flight 2 | . . . . 2 Utility 19 | 1 6 . 4 8 Device 5 | . 1 . 1 3 Storage 8 | 1 5 . 1 1 Processor . | . . . . . Hackware . | . . . . . Protection 6 | . . . 2 4 Artifact . | . . . . . Weapon 14 | 1 2 2 1 8 Energy Gun 7 | 1 2 2 . 2 Energy Cannon . | . . . . . Ballistic Gun 4 | . . . 1 3 Ballistic Cannon 2 | . . . . 2 Launcher . | . . . . . Special Weapon . | . . . . . Impact Weapon . | . . . . . Slashing Weapon . | . . . . . Piercing Weapon . | . . . . . Special Melee Weapon 1 | . . . . 1 Unidentified Prototypes . | . . . . . Parts Lost 23 | . 1 . . 22 Power 6 | . . . . 6 Propulsion 5 | . . . . 5 Utility 6 | . . . . 6 Weapon 6 | . 1 . . 5 Highest Loss Streak 5 | . 1 . . 5 To Critical Strikes . | . . . . . Average Slot Usage (%) 85 | . 79 88 99 70 Engine 17 | . 14 22 22 13 Treads 2 | . 11 . . . Leg 15 | . 16 22 22 6 Flight 1 | . . . . 3 Device 8 | . 5 11 6 11 Storage 10 | . 14 11 11 9 Protection 9 | . . . 15 7 Energy Gun 10 | . 16 22 12 3 Ballistic Gun 4 | . . . 9 2 Ballistic Cannon 1 | . . . . 4 Special Melee Weapon 1 | . . . . 5 Naked Turns . | . . . . . Heaviest Build 61 | 10 29 35 48 61 Greatest Support 40 | 40 40 20 20 20 Greatest Overweight (x) 20 | . 1 3 2 20 Average Overweight (x) 1 | . . 1 1 3 Largest Inventory Capacity 25 | 8 25 15 15 20 Average Capacity 14 | 7 14 15 15 15 Most Carried 14 | 7 11 8 13 14 Average Carried 5 | 3 4 4 6 6 Final Capacity 20 | 8 15 15 15 20 Final Carried 7 | 4 7 3 7 . Class Distribution -------------------- 54% | Scavenger-Mutant 45% | Mutant Dominant Class ---------------- Mutant | -10/Materials Mutant | -9/Materials Scavenger-Mutant | -9/Mines Mutant | -8/Materials Resources | -11 -10 -9 -9 -8 ----------- Run | Jun Mat Mat Min Mat Matter Collected 1086 | 241 135 30 113 567 Remotely 10 | . . . . 10 Salvage Created 909 | . 262 154 . 493 Parts 45 | . 20 2 . 23 Haulers Intercepted . | . . . . . Recyclers Shooed . | . . . . . Parts Field Recycled . | . . . . . Retrieved Matter . | . . . . . Parts Self-Destructed . | . . . . . Prevented . | . . . . . Kills | -11 -10 -9 -9 -8 ------- Run | Jun Mat Mat Min Mat Combat Hostiles Destroyed 27 | . 7 3 . 17 Guns 20 | . 7 2 . 11 Cannons 6 | . . . . 6 Classes Destroyed 6 | . 4 1 . 1 Worker 2 | . 1 . . 1 Watcher 1 | . 1 . . . Swarmer 9 | . 3 . . 6 Grunt 13 | . 4 2 . 7 Sentry 3 | . . 1 . 2 Hunter 2 | . . . . 2 Best Kill Streak 3 | . 3 3 . 3 Combat Bots Only 3 | . 3 3 . 3 Max Kills in Single Turn 2 | . 2 1 . 1 Gunslinging . | . . . . . Exploded . | . . . . . Melee . | . . . . . Uniques/NPCs Destroyed . | . . . . . Combat | -11 -10 -9 -9 -8 -------- Run | Jun Mat Mat Min Mat Damage Taken 3376 | . 505 267 . 2604 Core 754 | . 82 116 . 556 Absorbed by Shields 156 | . . . . 156 Core Remaining (%) 79 | 100 67 . 71 . Volleys Fired 141 | . 30 12 . 99 Largest 2 | . 2 2 . 2 Hottest 107 | . 90 90 . 107 Shots Fired 178 | . 38 24 . 116 Gun 139 | . 38 24 . 77 Cannon 39 | . . . . 39 Launcher . | . . . . . Special . | . . . . . Kinetic 79 | . . . . 79 Thermal 89 | . 28 24 . 37 Explosive . | . . . . . Electromagnetic 10 | . 10 . . . Robot Hit Streak 18 | . 9 17 . 18 Robot Miss Streak 2 | . 2 2 . 2 Penetration Max . | . . . . . Secondary Targets 1 | . . 1 . . Max Gunslinging Chain 1 | . . 1 . . Shots Hit Robots 148 | . 26 22 . 100 Core Hits 56 | . 13 6 1 36 Critical Kills . | . . . . . Critical Parts Destroyed . | . . . . . Critical Strikes 4 | . 2 1 . 1 Burn 3 | . 2 1 . . Blast 1 | . . . . 1 Melee Attacks . | . . . . . Impact . | . . . . . Slashing . | . . . . . Piercing . | . . . . . Sneak Attacks . | . . . . . Combat Hostiles . | . . . . . Follow-up Attacks . | . . . . . Damage Inflicted 2485 | . 413 249 9 1814 Guns 1671 | . 369 249 . 1053 Cannons 739 | . . . . 739 Explosions 41 | . 41 . . . Melee . | . . . . . Ramming 34 | . 3 . 9 22 Kinetic 1223 | . . . . 1223 Thermal 1088 | . 270 249 . 569 Explosive . | . . . . . Electromagnetic 140 | . 140 . . . Impact . | . . . . . Slashing . | . . . . . Piercing . | . . . . . Highest Corruption . | . . . . . Average Corruption . | . . . . . Corruption Purged . | . . . . . Corruption Blocked . | . . . . . Overload Shots . | . . . . . Overflow Damage 7 | . . . . 7 Projectiles 7 | . . . . 7 Explosions . | . . . . . Melee . | . . . . . Knockbacks 12 | . . . . 12 Impact . | . . . . . Kinetic 12 | . . . . 12 Secondary . | . . . . . Self-Inflicted Damage 11 | . . . . 11 Shots . | . . . . . Rammed 6 | . . . . 6 Targets Rammed 12 | . 1 . 5 6 Kicked 6 | . 1 . 5 . Crushed . | . . . . . Highest Temperature 522 | . 180 522 . 414 Average Temperature 112 | . 60 246 . 87 Received Heat Transfer 1699 | . 126 174 . 1399 Effects 15 | . . 12 . 3 Shutdowns 4 | . . 3 . 1 Energy Bleed 3 | . . 2 . 1 Short Circuit 2 | . . 2 . . Damage (minor) 2 | . . 1 . 1 Damage (major) 3 | . . 3 . . Damage (core) 1 | . . 1 . . Siege Activations . | . . . . . Robots Corrupted . | . . . . . Combat Hostiles . | . . . . . Parts Fried 1 | . 1 . . . Impact Corruptions . | . . . . . Robots Melted 1 | . . 1 . . Combat Hostiles 1 | . . 1 . . Parts Melted 10 | . 2 5 . 3 Heat Transferred 2843 | . 817 731 . 1295 Parts Sabotaged . | . . . . . Parts Stolen . | . . . . . Parts Stripped . | . . . . . Power Chain Reactions 1 | . 1 . . . Missiles Intercepted . | . . . . . Alert | -11 -10 -9 -9 -8 ------- Run | Jun Mat Mat Min Mat Peak Influence 142 | . 112 142 100 133 Initial 46 | . . 32 46 . Average 41 | . 46 95 28 53 Maximum Alert Level . | . . . . . Low Security (%) 100 | 100 100 100 100 100 Level 1 . | . . . . . Level 2 . | . . . . . Level 3 . | . . . . . Level 4 . | . . . . . Level 5 . | . . . . . High Security . | . . . . . Max Security . | . . . . . Squads Dispatched 7 | . 1 1 1 4 Investigation 1 | . 1 . . . Extermination . | . . . . . Reinforcement 1 | . . 1 . . Assault 1 | . . . 1 . Garrison 4 | . . . . 4 Intercept . | . . . . . Searches Triggered . | . . . . . Construction Impeded . | . . . . . Haulers Reinforced . | . . . . . Active Scanning Responses . | . . . . . Cargo Convoy Interrupts . | . . . . . Stealth | -11 -10 -9 -9 -8 --------- Run | Jun Mat Mat Min Mat Distress Signals 6 | . 1 . . 5 Communications Jammed . | . . . . . Distress Signals . | . . . . . Times Spotted 57 | . 13 4 5 35 Peak Tracking Total 5 | . 4 3 5 5 Tactical Retreats 1 | . . 1 . . Traps | -11 -10 -9 -9 -8 ------- Run | Jun Mat Mat Min Mat Traps Triggered 3 | . 2 . . 1 Indirectly . | . . . . . Trap Hack Attempts . | . . . . . Triggered . | . . . . . Disarmed . | . . . . . Reprogrammed . | . . . . . Reused . | . . . . . Traps Extracted . | . . . . . Installed . | . . . . . Triggered . | . . . . . Machines | -11 -10 -9 -9 -8 ---------- Run | Jun Mat Mat Min Mat Machines Disabled 3 | . . . . 3 Max in Single Turn 1 | . . . . 1 Machines Repaired . | . . . . . Machines Sabotaged . | . . . . . Overloaded Fab Kills . | . . . . . Hacking | -11 -10 -9 -9 -8 --------- Run | Jun Mat Mat Min Mat Machines Accessed 3 | . 2 1 . . Terminals 2 | . 1 1 . . Fabricators . | . . . . . Repair Stations . | . . . . . Recycling Units 1 | . 1 . . . Scanalyzers . | . . . . . Garrison Access . | . . . . . Total Hacks 7 | . 4 3 . . Successful 6 | . 3 3 . . Failed 1 | . 1 . . . Catastrophic . | . . . . . Database Lockouts . | . . . . . Manual . | . . . . . Terminals 6 | . 3 3 . . Fabricators . | . . . . . Repair Stations . | . . . . . Recycling Units 1 | . 1 . . . Scanalyzers . | . . . . . Garrison Access . | . . . . . Terminal Hacks 5 | . 2 3 . . Record 2 | . . 2 . . Alert Level 1 | . . 1 . . Locate Traps 1 | . 1 . . . Hauler Manifests 1 | . 1 . . . Fabricator Hacks . | . . . . . Repair Station Hacks . | . . . . . Recycling Unit Hacks 1 | . 1 . . . Report Inventory 1 | . 1 . . . Scanalyzer . | . . . . . Garrison Access Hacks . | . . . . . Unauthorized Hacks . | . . . . . Terminals . | . . . . . Fabricators . | . . . . . Repair Stations . | . . . . . Recycling Units . | . . . . . Scanalyzers . | . . . . . Garrison Access . | . . . . . Data Cores Recovered . | . . . . . Used . | . . . . . Hacking Detections 2 | . 1 1 . . Full Trace Events 1 | . . 1 . . Feedback Events . | . . . . . Feedback Blocked . | . . . . . Robot Schematics Acquired . | . . . . . Robots Built . | . . . . . Authchips . | . . . . . Time . | . . . . . Total Robot Build Rating . | . . . . . Part Schematics Acquired . | . . . . . Parts Built . | . . . . . Authchips . | . . . . . Time . | . . . . . Total Part Build Rating . | . . . . . Parts Repaired . | . . . . . Time . | . . . . . Parts Recycled . | . . . . . Recycled Matter . | . . . . . Retrieved Matter . | . . . . . Retrieved Components . | . . . . . Parts Scanalyzed . | . . . . . Part Schematics Acquired . | . . . . . Parts Damaged . | . . . . . Bothacking | -11 -10 -9 -9 -8 ------------ Run | Jun Mat Mat Min Mat Used RIF Installer . | . . . . . Robots Hacked . | . . . . . Non-combat . | . . . . . Combat . | . . . . . Robot Hacks Applied . | . . . . . Relay Couplers Released . | . . . . . Fabnet Peak Effective % . | . . . . . Robots Rewired . | . . . . . Allies Hacked . | . . . . . Hacks Repelled . | . . . . . Allies | -11 -10 -9 -9 -8 -------- Run | Jun Mat Mat Min Mat Total Allies 3 | . . . 3 . Largest Group 3 | . . . 3 2 Highest-Rated Group 76 | . . . 76 62 Highest-Rated Ally 31 | . . . 31 31 Total Orders . | . . . . . Ally Attacks 30 | . . . 11 19 Total Damage 450 | . . . 218 232 Kills 8 | . . . 5 3 Allies Corrupted . | . . . . . Allies Melted . | . . . . . Intel | -11 -10 -9 -9 -8 ------- Run | Jun Mat Mat Min Mat Robot Analysis Total . | . . . . . Derelict Logs Recovered 2 | . . . 2 . Drone Launches . | . . . . . Drone Recoveries . | . . . . . Exploration | -11 -10 -9 -9 -8 ------------- Run | Jun Mat Mat Min Mat Turns Passed 4062 | 204 639 199 1613 1407 Spaces Moved 1459 | 138 299 69 640 313 Core 31 | 17 . . . 14 Treads 240 | 91 130 . . 19 Legs 1094 | . 169 69 640 216 Wheels 48 | 30 . . . 18 Hover . | . . . . . Flight 46 | . . . . 46 Fastest Speed 50 | 50 160 190 190 155 Average Speed 241 | 129 176 194 244 357 Slowest Speed 1050 | 160 190 330 260 1050 Overloaded Moves . | . . . . . Propulsion Burnouts . | . . . . . Robots Hopped . | . . . . . Cave-ins Triggered . | . . . . . Exploration Rate (%) 29 | 7 42 6 70 24 Regions Visited 4 Branch Regions 1 Pre-discovered Areas 1 | . . . 1 . Known Exits Taken . | . . . . . Unknown Exits Taken 4 | 1 1 1 1 . Scrap Searched 3 | . . . 3 . Spaces Dug . | . . . . . Terrain Destroyed 6 | . 3 . . 3 Melee . | . . . . . Projectile 3 | . . . . 3 AOE 3 | . 3 . . . Terrain Rammed . | . . . . . Walls Destroyed . | . . . . . Machines Disabled . | . . . . . Actions | -11 -10 -9 -9 -8 --------- Run | Jun Mat Mat Min Mat Total 1813 | 165 371 111 682 484 Wait 37 | 6 2 18 6 5 Move 1455 | 137 298 68 639 313 Hop . | . . . . . Pick Up 65 | 12 16 2 15 20 Fast Attach . | . . . . . Attach 31 | 5 4 2 2 18 Detach 3 | . 1 . . 2 Swap 28 | 2 9 4 3 10 Drop 39 | 3 10 5 10 11 Fire 141 | . 30 12 . 99 Melee . | . . . . . Ram 6 | . . . . 6 Kick 6 | . 1 . 5 . Crush . | . . . . . Escape Stasis . | . . . . . Rewire 2 | . . . 2 . Trap . | . . . . . Miscellaneous . | . . . . . Route ------- -11/Junkyard -10/Materials (discovered 2 exits: *Mat x2) -9/Materials -9/Mines -8/Materials History --------- Turn | Location | Event 18 | -11/Junkyard | Discovered new exit (range 16) 205 | -11/Junkyard | Entered Materials 311 | -10/Materials | Discovered new exit (range 16) 315 | -10/Materials | Build established: Mutant 584 | -10/Materials | Discovered new exit (range 15) 844 | -10/Materials | Entered another Materials area 844 | -9/Materials | Evolved 2 slots: Power x1, Utility x1 876 | -9/Materials | Discovered new exit (range 16) 1043 | -9/Materials | Entered Mines 1242 | -9/Mines | Build established: Scavenger-Mutant 1435 | -9/Mines | Met a Derelict testing a Signal Generator 2155 | -9/Mines | Learned Materials terminal intel 2432 | -9/Mines | Learned location of Storage (-9) 2629 | -9/Mines | Discovered new exit (range 3) 2656 | -9/Mines | Entered Materials 2656 | -8/Materials | Accompanied by 2 allies 2656 | -8/Materials | Evolved 2 slots: Propulsion x1, Utility x1 2657 | -8/Materials | Loaded intel: 12 terminal locations 2661 | -8/Materials | Led the pair of lost Derelicts to an unsafe place 2984 | -8/Materials | Build established: Mutant 3327 | -8/Materials | Garrison activated, responded to threat 3534 | -8/Materials | Lost 4 parts (1p1n2w) 3796 | -8/Materials | Core integrity fell below 50% 3820 | -8/Materials | Build established: Scavenger-Mutant 3902 | -8/Materials | Lost 5 parts (2p3u) 3967 | -8/Materials | Garrison activated, responded to threat 4000 | -8/Materials | Core integrity fell below 20% 4053 | -8/Materials | Lost 3 parts (3w) 4063 | -8/Materials | Destroyed by Y-45 Defender with Beam Rifle Last Messages --------------- K-01 Serf collects debris. G-47 Trooper destroyed. Hvy. Assault Rifle destroyed. K-01 Serf collects debris. Slammed into K-01 Serf. Acquired 3 matter. Slammed into K-01 Serf. R-06 Scavenger collects Com. Wheel. Acquired 27 matter. Slammed into G-47 Trooper. Destabilizing: Core damaged (-11). R-06 Scavenger collects Imp. Heat Sink. Slammed into G-47 Trooper. R-06 Scavenger collects Com. Wheel. Acquired Hpw. Tractor Beam. G-47 Trooper destroyed. Critical hit (Burn: +37). Acquired 2 matter. Acquired 8 matter. Wheel destroyed. Map ----- +----------------------------------------------------+ | ???????????????????????"T????????????????????????? | | ???????????????????????""????????????????????????? | | ?????????????????????????????????????????????????? | | ?????????????????????????????????????????????????? | | ?????????????????????????????????????????????????? | | ?????????????????????????????????????????????????? | | ?????????????????????????????????????????????????? | | ?????????????????????????????????????????????????? | | ?????????????????????????????????????????????????? | | ?????????????????????????????????????????????????? | | ????????????????????????????????? ???????????????? | | ????????????????????????????????? ???????????????? | | ????????????????????????????????? ???????????????? | | ????????????????????????????????? #??????????????? | | ????????????????????????????????? #??????????????? | | ????????????????????????????????? #??????????????? | | ????????????????????????????????? #??????????????? | | ????????????????????????????????# #??????????????? | | ????????????????????????????????# #??????????????? | | ??????????????????????########??# #??????????????? | | ??????????????????????# #??# #?????????###### | | ??????????????????????#]] #### #?#???????# | | ?????????????????????##Y] =; *%%#? T????#?# | | ?????????????????????# ]] #%% #?? #?# """ | | ?????????????????????## #%% #?? """ #?# """" | | ??????????????????????# @ #% #?? """ #?# """" | | ??????????????????????##+##### %#???""" #?#!!""" | | ?????????????????????????????# #??? ??#[%""" | | ?????????????????????????????# #####+##### [ | | ???????????????????????# ????# % #######+ | | ???????????????????????# ##### %= | | ?????????????????????? + % %[% | | ???????????????????"" # | | ???????????????????????#"" % ######## | | ???????????????????????#"Y %% #??????? | | ???????????????????????#"" """ %"" #??????? | | ???????????????????????# """ """% #??????? | | ???????????????????????# "" """ #####???? | | ???????????????????????# | | ???????????????????????# #####???? | | ???????????????????????# #"Y"####+#### #???????? | | ???????????????????????# #"""?? #?# #???????? | | ??????????????????????????????# #?# #???????? | | ??????????????????????????????# +? ??????? | | ??????????????????????????????# #?#######?????? | | ??????????????????????????????# #?????????????? | | ??????????????????????????????# +?????????????? | | ??????????????????????????????# #?????????????? | | ??????????????????????????????# #?????????????? | | ??????????????????????????????# #?????????????? | +----------------------------------------------------+ Best States ------------- Heat Dissipation 45 Energy Generation 19 Energy Capacity 430 Matter Stores 300 Matter Capacity 300 Sight Range 16 Robot Scan Range 14 Terrain Scan Density 10 Armor Coverage 450 Resistance: KI 20 Resistance: TH 20 Resistance: EX 20 Resistance: EM 20 Resistance: I 20 Resistance: S 20 Resistance: P 20 Evasion (%) 50 Recoil Reduction 2 Offensive Hacking 10 Item Schematics ----------------- None Robot Schematics ------------------ None Fabricated ------------ Nothing Alien Tech Used ----------------- None Achievements -------------- None Challenges ------------ None Game ------ Seed AccelerationLatentSource Manual? 0 Play Time 00:52:13 Cumulative 10.5 hours Start 2023.03.06 @ 23:46:57 End 2023.03.07 @ 00:40:48 Sessions 1 Manual Loads 0 Difficulty Adventurer Special Mode None Game No. 7 Rogue 0 Adventurer 7 Explorer 0 Win Type - Total 0 Types 0/0/0/0/0/0/0/0/0 Lore% 14 Gallery% 13 Achievement% 13 Wizard Run 0 Options --------- ASCII 0 Keyboard 0 Movement Numpad Keybinds 0 Fullscreen 1 Font 18/Smallcaps Map View 76x50 Tactical HUD 0 Map Filters NONE Filters NONE Steam 1 RUN: 48076bba-cdff-4159-a0a1-2359e40f6ea0